[Event "Titled Tuesday Blitz March 29 Late 2022"]
[White "Koutlas, Nikolaos"]
[Black "Khanin, Semen"]
[WhiteFideId "25827138"]
[BlackFideId "4111990"]
[WhiteElo "1610"]
[BlackElo "2442"]
[Result "0-1"]
[Round "01"]
[TimeControl "180+1"]
[Date "2022.03.30"]
[WhiteClock "0:00:03"]
[BlackClock "0:00:51"]

1. e4 {[%clk 0:02:59]}  c5 {[%clk 0:03:00]} 2. Nf3 {[%clk 0:02:58]}  d6 {[%clk 0:03:00]} 3. Nc3 {[%clk 0:02:58]}  Nf6 {[%clk 0:03:00]} 4. Bc4 {[%clk 0:02:58]}  Nc6 {[%clk 0:02:58]} 5. d3 {[%clk 0:02:58]}  g6 {[%clk 0:02:58]} 6. O-O {[%clk 0:02:57]}  Bg7 {[%clk 0:02:58]} 7. Re1 {[%clk 0:02:56]}  e5 {[%clk 0:02:55]} 8. a4 {[%clk 0:02:55]}  O-O {[%clk 0:02:55]} 9. Bg5 {[%clk 0:02:52]}  h6 {[%clk 0:02:55]} 10. Bxf6 {[%clk 0:02:52]}  Bxf6 {[%clk 0:02:54]} 11. Nd5 {[%clk 0:02:49]}  Bg7 {[%clk 0:02:54]} 12. h3 {[%clk 0:02:47]}  Kh7 {[%clk 0:02:53]} 13. c3 {[%clk 0:02:20]}  f5 {[%clk 0:02:52]} 14. Bb3 {[%clk 0:02:14]}  Bd7 {[%clk 0:02:49]} 15. Bc2 {[%clk 0:02:09]}  Ne7 {[%clk 0:02:48]} 16. Nxe7 {[%clk 0:02:02]}  Qxe7 {[%clk 0:02:49]} 17. exf5 {[%clk 0:02:02]}  gxf5 {[%clk 0:02:37]} 18. d4 {[%clk 0:01:53]}  cxd4 {[%clk 0:02:34]} 19. Nxd4 {[%clk 0:01:46]}  Qf6 {[%clk 0:02:15]} 20. Nb5 {[%clk 0:01:43]}  Bxb5 {[%clk 0:02:01]} 21. axb5 {[%clk 0:01:43]}  Kh8 {[%clk 0:01:58]} 22. Qd5 {[%clk 0:01:41]}  Qe7 {[%clk 0:01:49]} 23. b6 {[%clk 0:01:29]}  a6 {[%clk 0:01:43]} 24. Rad1 {[%clk 0:01:22]}  Rad8 {[%clk 0:01:42]} 25. b4 {[%clk 0:01:02]}  e4 {[%clk 0:01:41]} 26. c4 {[%clk 0:01:00]}  Be5 {[%clk 0:01:41]} 27. Qd2 {[%clk 0:00:47]}  Qg7 {[%clk 0:01:40]} 28. Qe2 {[%clk 0:00:39]}  Rg8 {[%clk 0:01:40]} 29. f3 {[%clk 0:00:33]}  Qg3 {[%clk 0:01:37]} 30. Qf2 {[%clk 0:00:23]}  Qh2+ {[%clk 0:01:12]} 31. Kf1 {[%clk 0:00:24]}  exf3 {[%clk 0:01:01]} 32. Qxf3 {[%clk 0:00:20]}  Rg3 {[%clk 0:01:01]} 33. Qd5 {[%clk 0:00:16]}  Rdg8 {[%clk 0:00:56]} 34. Rxe5 {[%clk 0:00:11]}  Rxg2 {[%clk 0:00:53]} 35. Qxg8+ {[%clk 0:00:06]}  Kxg8 {[%clk 0:00:51]} 36. Re8+ {[%clk 0:00:03]}  Kf7 {[%clk 0:00:51]} 0-1


[Site "https://www.chess.com"]

[Event "Titled Tuesday Blitz March 29 Late 2022"]
[White "Krishnan, Varun"]
[Black "Ricaurte Lopez, Juan Carlos"]
[WhiteFideId "5054508"]
[BlackFideId "3600327"]
[WhiteElo "2592"]
[BlackElo "2209"]
[Result "1-0"]
[Round "01"]
[TimeControl "180+1"]
[Date "2022.03.30"]
[WhiteClock "0:00:50"]
[BlackClock "0:00:19"]

1. e4 {[%clk 0:03:00]}  e5 {[%clk 0:02:58]} 2. Nf3 {[%clk 0:03:00]}  Nc6 {[%clk 0:02:56]} 3. Bb5 {[%clk 0:03:01]}  a6 {[%clk 0:02:54]} 4. Ba4 {[%clk 0:03:01]}  Nf6 {[%clk 0:02:52]} 5. O-O {[%clk 0:03:01]}  b5 {[%clk 0:02:50]} 6. Bb3 {[%clk 0:03:00]}  Bc5 {[%clk 0:02:48]} 7. a4 {[%clk 0:02:59]}  Rb8 {[%clk 0:02:43]} 8. c3 {[%clk 0:02:59]}  O-O {[%clk 0:02:39]} 9. d4 {[%clk 0:02:53]}  Bb6 {[%clk 0:02:35]} 10. dxe5 {[%clk 0:02:43]}  Nxe4 {[%clk 0:02:32]} 11. Bc2 {[%clk 0:02:32]}  d5 {[%clk 0:02:28]} 12. exd6 {[%clk 0:02:25]}  Nxd6 {[%clk 0:02:26]} 13. axb5 {[%clk 0:02:23]}  axb5 {[%clk 0:02:24]} 14. Qd5 {[%clk 0:01:56]}  Bb7 {[%clk 0:02:14]} 15. Qh5 {[%clk 0:01:42]}  g6 {[%clk 0:02:10]} 16. Qh6 {[%clk 0:01:41]}  Qf6 {[%clk 0:02:08]} 17. Bg5 {[%clk 0:01:37]}  Qg7 {[%clk 0:02:08]} 18. Qh4 {[%clk 0:01:36]}  f5 {[%clk 0:01:48]} 19. Bh6 {[%clk 0:01:33]}  Qf7 {[%clk 0:01:44]} 20. Bxf8 {[%clk 0:01:22]}  Rxf8 {[%clk 0:01:43]} 21. Nbd2 {[%clk 0:01:21]}  Ne7 {[%clk 0:01:09]} 22. Rfe1 {[%clk 0:01:17]}  Nd5 {[%clk 0:01:08]} 23. Bb3 {[%clk 0:01:12]}  Kh8 {[%clk 0:00:57]} 24. Ng5 {[%clk 0:01:09]}  Qd7 {[%clk 0:00:44]} 25. Ndf3 {[%clk 0:00:56]}  Nc4 {[%clk 0:00:32]} 26. Bxc4 {[%clk 0:00:51]}  bxc4 {[%clk 0:00:32]} 27. Ne5 {[%clk 0:00:51]}  Qg7 {[%clk 0:00:19]} 28. Ne6 {[%clk 0:00:50]} 1-0


[Site "https://www.chess.com"]

[Event "Titled Tuesday Blitz March 29 Late 2022"]
[White "Lin, Dachey"]
[Black "Horcajuelo Rocamora, Martin"]
[WhiteFideId "2029650"]
[BlackFideId "24573027"]
[WhiteElo "2313"]
[BlackElo "1706"]
[Result "1-0"]
[Round "01"]
[TimeControl "180+1"]
[Date "2022.03.30"]
[WhiteClock "0:01:04"]
[BlackClock "0:02:24"]

1. g4 {[%clk 0:02:51]}  e5 {[%clk 0:02:55]} 2. d4 {[%clk 0:02:50]}  exd4 {[%clk 0:02:54]} 3. Qxd4 {[%clk 0:02:49]}  Nc6 {[%clk 0:02:54]} 4. Qe4+ {[%clk 0:02:48]}  Be7 {[%clk 0:02:54]} 5. Nc3 {[%clk 0:02:47]}  d6 {[%clk 0:02:54]} 6. h3 {[%clk 0:02:41]}  Nf6 {[%clk 0:02:53]} 7. Qa4 {[%clk 0:02:42]}  Bd7 {[%clk 0:02:52]} 8. Bg2 {[%clk 0:02:42]}  O-O {[%clk 0:02:52]} 9. Nf3 {[%clk 0:02:41]}  Ne5 {[%clk 0:02:48]} 10. Qf4 {[%clk 0:02:39]}  Nxf3+ {[%clk 0:02:46]} 11. Bxf3 {[%clk 0:02:40]}  c6 {[%clk 0:02:45]} 12. g5 {[%clk 0:02:20]}  Ne8 {[%clk 0:02:45]} 13. Be3 {[%clk 0:02:19]}  d5 {[%clk 0:02:44]} 14. O-O-O {[%clk 0:02:18]}  Nd6 {[%clk 0:02:43]} 15. h4 {[%clk 0:02:14]}  Nc4 {[%clk 0:02:42]} 16. Bd4 {[%clk 0:02:11]}  c5 {[%clk 0:02:41]} 17. Bxg7 {[%clk 0:01:16]}  Kxg7 {[%clk 0:02:36]} 18. Nxd5 {[%clk 0:01:16]}  Nb6 {[%clk 0:02:30]} 19. Qe5+ {[%clk 0:01:16]}  Kg8 {[%clk 0:02:24]} 20. Nxe7+ {[%clk 0:01:04]} 1-0


[Site "https://www.chess.com"]

[Event "Titled Tuesday Blitz March 29 Late 2022"]
[White "Ljukin, Sergei"]
[Black "Martinez Alcantara, Jose Eduardo"]
[WhiteFideId "14102200"]
[BlackFideId "3805662"]
[WhiteElo "2312"]
[BlackElo "2690"]
[Result "0-1"]
[Round "01"]
[TimeControl "180+1"]
[Date "2022.03.29"]
[WhiteClock "0:00:14"]
[BlackClock "0:01:31"]

1. e4 {[%clk 0:02:54]}  c5 {[%clk 0:03:00]} 2. Nf3 {[%clk 0:02:54]}  d6 {[%clk 0:03:00]} 3. d4 {[%clk 0:02:53]}  cxd4 {[%clk 0:03:01]} 4. Nxd4 {[%clk 0:02:54]}  Nf6 {[%clk 0:03:02]} 5. Nc3 {[%clk 0:02:54]}  Nc6 {[%clk 0:03:02]} 6. Bc4 {[%clk 0:02:53]}  e6 {[%clk 0:03:02]} 7. Be3 {[%clk 0:02:52]}  Bd7 {[%clk 0:03:01]} 8. Qe2 {[%clk 0:02:52]}  Rc8 {[%clk 0:03:02]} 9. Bb3 {[%clk 0:02:47]}  Na5 {[%clk 0:02:58]} 10. O-O-O {[%clk 0:02:47]}  Nxb3+ {[%clk 0:02:58]} 11. axb3 {[%clk 0:02:46]}  Qa5 {[%clk 0:02:54]} 12. Kb1 {[%clk 0:02:44]}  Rxc3 {[%clk 0:02:39]} 13. bxc3 {[%clk 0:02:43]}  Nxe4 {[%clk 0:02:39]} 14. Bd2 {[%clk 0:02:35]}  Nxc3+ {[%clk 0:02:27]} 15. Bxc3 {[%clk 0:02:34]}  Qxc3 {[%clk 0:02:28]} 16. Nf5 {[%clk 0:01:55]}  Qc5 {[%clk 0:02:25]} 17. Ne3 {[%clk 0:01:46]}  Be7 {[%clk 0:02:24]} 18. Rhe1 {[%clk 0:01:42]}  O-O {[%clk 0:02:21]} 19. Qc4 {[%clk 0:01:17]}  Qa5 {[%clk 0:02:02]} 20. b4 {[%clk 0:00:31]}  Qd8 {[%clk 0:01:45]} 21. Qe2 {[%clk 0:00:24]}  Bf6 {[%clk 0:01:35]} 22. Rxd6 {[%clk 0:00:20]}  Qc7 {[%clk 0:01:35]} 23. Qd3 {[%clk 0:00:16]}  Bb5 {[%clk 0:01:33]} 24. c4 {[%clk 0:00:15]}  Bc6 {[%clk 0:01:30]} 25. b5 {[%clk 0:00:15]}  Be4 {[%clk 0:01:30]} 26. Qxe4 {[%clk 0:00:14]}  Qxd6 {[%clk 0:01:31]} 0-1


[Site "https://www.chess.com"]

[Event "Titled Tuesday Blitz March 29 Late 2022"]
[White "Manolache, Marius"]
[Black "Almagro Mazariegos, Sebastian"]
[WhiteFideId "1201530"]
[BlackFideId "2221640"]
[WhiteElo "2389"]
[BlackElo "2273"]
[Result "1-0"]
[Round "01"]
[TimeControl "180+1"]
[Date "2022.03.30"]
[WhiteClock "0:02:22"]
[BlackClock "0:00:57"]

1. d4 {[%clk 0:02:57]}  Nf6 {[%clk 0:02:59]} 2. c4 {[%clk 0:02:56]}  g6 {[%clk 0:02:59]} 3. Nc3 {[%clk 0:02:56]}  Bg7 {[%clk 0:03:00]} 4. Nf3 {[%clk 0:02:56]}  d6 {[%clk 0:03:00]} 5. Bg5 {[%clk 0:02:55]}  O-O {[%clk 0:03:01]} 6. e3 {[%clk 0:02:56]}  c5 {[%clk 0:02:59]} 7. d5 {[%clk 0:02:54]}  e6 {[%clk 0:02:58]} 8. Qd2 {[%clk 0:02:48]}  Re8 {[%clk 0:02:51]} 9. Be2 {[%clk 0:02:47]}  exd5 {[%clk 0:02:49]} 10. Nxd5 {[%clk 0:02:45]}  Be6 {[%clk 0:02:47]} 11. Nf4 {[%clk 0:02:40]}  Ne4 {[%clk 0:02:23]} 12. Bxd8 {[%clk 0:02:38]}  Nxd2 {[%clk 0:02:24]} 13. Nxe6 {[%clk 0:02:26]}  fxe6 {[%clk 0:01:26]} 14. Nxd2 {[%clk 0:02:25]}  Rxd8 {[%clk 0:01:22]} 15. O-O-O {[%clk 0:02:25]}  Nc6 {[%clk 0:01:19]} 16. Ne4 {[%clk 0:02:25]}  Bf8 {[%clk 0:00:57]} 17. Bg4 {[%clk 0:02:22]} 1-0


[Site "https://www.chess.com"]

[Event "Titled Tuesday Blitz March 29 Late 2022"]
[White "Meduri, Aakaash"]
[Black "Mikhailov, Viacheslav"]
[WhiteFideId "2032252"]
[BlackFideId "4187369"]
[WhiteElo "2096"]
[BlackElo "2381"]
[Result "0-1"]
[Round "01"]
[TimeControl "180+1"]
[Date "2022.03.30"]
[WhiteClock "0:00:04"]
[BlackClock "0:00:36"]

1. d4 {[%clk 0:02:58]}  Nf6 {[%clk 0:02:59]} 2. Nc3 {[%clk 0:02:55]}  d6 {[%clk 0:02:45]} 3. e4 {[%clk 0:02:53]}  g6 {[%clk 0:02:45]} 4. Bf4 {[%clk 0:02:53]}  Bg7 {[%clk 0:02:45]} 5. Qd2 {[%clk 0:02:53]}  O-O {[%clk 0:02:46]} 6. Nf3 {[%clk 0:02:44]}  Bg4 {[%clk 0:02:45]} 7. O-O-O {[%clk 0:02:43]}  Nc6 {[%clk 0:02:45]} 8. Bh6 {[%clk 0:02:32]}  e5 {[%clk 0:02:45]} 9. Bxg7 {[%clk 0:02:31]}  Kxg7 {[%clk 0:02:45]} 10. d5 {[%clk 0:02:22]}  Bxf3 {[%clk 0:02:44]} 11. gxf3 {[%clk 0:02:08]}  Nd4 {[%clk 0:02:45]} 12. Qe3 {[%clk 0:02:06]}  Nh5 {[%clk 0:02:44]} 13. Nb1 {[%clk 0:01:55]}  Qf6 {[%clk 0:02:37]} 14. Nd2 {[%clk 0:01:45]}  c6 {[%clk 0:02:21]} 15. c3 {[%clk 0:01:43]}  Nb5 {[%clk 0:02:18]} 16. Bxb5 {[%clk 0:01:38]}  cxb5 {[%clk 0:02:19]} 17. Rhg1 {[%clk 0:01:30]}  Nf4 {[%clk 0:02:16]} 18. Rg4 {[%clk 0:01:25]}  h5 {[%clk 0:02:15]} 19. Rg3 {[%clk 0:01:25]}  Rfc8 {[%clk 0:02:15]} 20. Kb1 {[%clk 0:01:14]}  Rc5 {[%clk 0:02:09]} 21. Rdg1 {[%clk 0:00:57]}  Rac8 {[%clk 0:02:08]} 22. Rg5 {[%clk 0:00:50]}  b4 {[%clk 0:01:55]} 23. c4 {[%clk 0:00:39]}  b5 {[%clk 0:01:54]} 24. b3 {[%clk 0:00:39]}  bxc4 {[%clk 0:01:54]} 25. Nxc4 {[%clk 0:00:40]}  Rxc4 {[%clk 0:01:51]} 26. bxc4 {[%clk 0:00:40]}  Rxc4 {[%clk 0:01:52]} 27. R5g3 {[%clk 0:00:21]}  Qe7 {[%clk 0:01:44]} 28. Rc1 {[%clk 0:00:18]}  Rxc1+ {[%clk 0:01:44]} 29. Kxc1 {[%clk 0:00:19]}  Qc7+ {[%clk 0:01:39]} 30. Kb2 {[%clk 0:00:19]}  Qc4 {[%clk 0:01:39]} 31. Rg1 {[%clk 0:00:17]}  Nd3+ {[%clk 0:01:37]} 32. Kb1 {[%clk 0:00:17]}  b3 {[%clk 0:01:17]} 33. Qd2 {[%clk 0:00:17]}  bxa2+ {[%clk 0:01:00]} 34. Qxa2 {[%clk 0:00:17]}  Qb4+ {[%clk 0:00:53]} 35. Ka1 {[%clk 0:00:17]}  Qc3+ {[%clk 0:00:49]} 36. Kb1 {[%clk 0:00:17]}  Nb4 {[%clk 0:00:49]} 37. Qb2 {[%clk 0:00:16]}  Qd3+ {[%clk 0:00:49]} 38. Ka1 {[%clk 0:00:15]}  a5 {[%clk 0:00:49]} 39. Rc1 {[%clk 0:00:13]}  Qxf3 {[%clk 0:00:46]} 40. Rc6 {[%clk 0:00:07]}  Qd1+ {[%clk 0:00:40]} 41. Rc1 {[%clk 0:00:08]}  Qa4+ {[%clk 0:00:37]} 42. Kb1 {[%clk 0:00:09]}  Nd3 {[%clk 0:00:37]} 43. Qc2 {[%clk 0:00:02]}  Qb4+ {[%clk 0:00:37]} 44. Ka1 {[%clk 0:00:03]}  Nxc1 {[%clk 0:00:37]} 45. Qxc1 {[%clk 0:00:04]}  Qd4+ {[%clk 0:00:36]} 0-1


[Site "https://www.chess.com"]

[Event "Titled Tuesday Blitz March 29 Late 2022"]
[White "Melikhov, Evgeny V."]
[Black "Spata, German"]
[WhiteFideId "4122046"]
[BlackFideId "113026"]
[WhiteElo "1945"]
[BlackElo "2238"]
[Result "1-0"]
[Round "01"]
[TimeControl "180+1"]
[Date "2022.03.30"]
[WhiteClock "0:00:11"]
[BlackClock "0:00:10"]

1. d4 {[%clk 0:02:58]}  e6 {[%clk 0:02:56]} 2. c4 {[%clk 0:02:57]}  Nf6 {[%clk 0:02:55]} 3. Nc3 {[%clk 0:02:57]}  d5 {[%clk 0:02:53]} 4. cxd5 {[%clk 0:02:56]}  Nxd5 {[%clk 0:02:52]} 5. e4 {[%clk 0:02:56]}  Nxc3 {[%clk 0:02:51]} 6. bxc3 {[%clk 0:02:56]}  c5 {[%clk 0:02:51]} 7. Nf3 {[%clk 0:02:56]}  cxd4 {[%clk 0:02:51]} 8. cxd4 {[%clk 0:02:56]}  Bb4+ {[%clk 0:02:51]} 9. Bd2 {[%clk 0:02:57]}  Bxd2+ {[%clk 0:02:51]} 10. Qxd2 {[%clk 0:02:58]}  O-O {[%clk 0:02:51]} 11. Bd3 {[%clk 0:02:57]}  b6 {[%clk 0:02:42]} 12. O-O {[%clk 0:02:55]}  Bb7 {[%clk 0:02:42]} 13. Rad1 {[%clk 0:02:51]}  Nc6 {[%clk 0:02:38]} 14. Bb1 {[%clk 0:02:44]}  Na5 {[%clk 0:02:28]} 15. Rfe1 {[%clk 0:02:32]}  Rc8 {[%clk 0:02:24]} 16. d5 {[%clk 0:02:26]}  Nc4 {[%clk 0:02:12]} 17. Qf4 {[%clk 0:02:24]}  exd5 {[%clk 0:01:19]} 18. e5 {[%clk 0:02:23]}  Qe7 {[%clk 0:00:53]} 19. Nd4 {[%clk 0:02:09]}  g6 {[%clk 0:00:51]} 20. Rd3 {[%clk 0:01:51]}  Rce8 {[%clk 0:00:44]} 21. Rh3 {[%clk 0:01:39]}  f5 {[%clk 0:00:16]} 22. e6 {[%clk 0:01:25]}  Qf6 {[%clk 0:00:10]} 23. Bd3 {[%clk 0:00:59]}  Re7 {[%clk 0:00:09]} 24. Rg3 {[%clk 0:00:38]}  Kh8 {[%clk 0:00:09]} 25. h4 {[%clk 0:00:31]}  Rfe8 {[%clk 0:00:08]} 26. h5 {[%clk 0:00:30]}  Bc8 {[%clk 0:00:02]} 27. hxg6 {[%clk 0:00:29]}  hxg6 {[%clk 0:00:03]} 28. Rh3+ {[%clk 0:00:29]}  Rh7 {[%clk 0:00:02]} 29. Rxh7+ {[%clk 0:00:22]}  Kxh7 {[%clk 0:00:03]} 30. g4 {[%clk 0:00:20]}  Kg7 {[%clk 0:00:02]} 31. gxf5 {[%clk 0:00:19]}  g5 {[%clk 0:00:03]} 32. Qg3 {[%clk 0:00:08]}  Rh8 {[%clk 0:00:02]} 33. f4 {[%clk 0:00:08]}  g4 {[%clk 0:00:01]} 34. Qxg4+ {[%clk 0:00:07]}  Kf8 {[%clk 0:00:02]} 35. e7+ {[%clk 0:00:07]}  Ke8 {[%clk 0:00:02]} 36. Qg6+ {[%clk 0:00:07]}  Qxg6+ {[%clk 0:00:02]} 37. fxg6 {[%clk 0:00:08]}  Rg8 {[%clk 0:00:03]} 38. f5 {[%clk 0:00:08]}  Nd6 {[%clk 0:00:03]} 39. Kf2 {[%clk 0:00:08]}  Nxf5 {[%clk 0:00:03]} 40. Nxf5 {[%clk 0:00:08]}  Bxf5 {[%clk 0:00:03]} 41. Bxf5 {[%clk 0:00:07]}  Rg7 {[%clk 0:00:04]} 42. Ke3 {[%clk 0:00:08]}  Rxe7+ {[%clk 0:00:04]} 43. Kd2 {[%clk 0:00:08]}  Rxe1 {[%clk 0:00:04]} 44. Kxe1 {[%clk 0:00:08]}  d4 {[%clk 0:00:05]} 45. Kd2 {[%clk 0:00:09]}  Ke7 {[%clk 0:00:05]} 46. Kd3 {[%clk 0:00:09]}  Kf6 {[%clk 0:00:06]} 47. Be4 {[%clk 0:00:09]}  b5 {[%clk 0:00:07]} 48. Kxd4 {[%clk 0:00:09]}  a5 {[%clk 0:00:07]} 49. Kc5 {[%clk 0:00:10]}  b4 {[%clk 0:00:08]} 50. Kb5 {[%clk 0:00:10]}  b3 {[%clk 0:00:09]} 51. axb3 {[%clk 0:00:10]}  a4 {[%clk 0:00:10]} 52. Kxa4 {[%clk 0:00:11]} 1-0


[Site "https://www.chess.com"]

[Event "Titled Tuesday Blitz March 29 Late 2022"]
[White "Melkumyan, Hrant"]
[Black "Petrovic, Aleksa"]
[WhiteFideId "13302485"]
[BlackFideId "967629"]
[WhiteElo "2604"]
[BlackElo "2245"]
[Result "1-0"]
[Round "01"]
[TimeControl "180+1"]
[Date "2022.03.29"]
[WhiteClock "0:00:50"]
[BlackClock "0:00:05"]

1. d4 {[%clk 0:02:37]}  Nf6 {[%clk 0:02:58]} 2. c4 {[%clk 0:02:37]}  e6 {[%clk 0:02:55]} 3. Nc3 {[%clk 0:02:37]}  Bb4 {[%clk 0:02:54]} 4. e3 {[%clk 0:02:38]}  O-O {[%clk 0:02:54]} 5. Bd3 {[%clk 0:02:37]}  b6 {[%clk 0:02:49]} 6. Ne2 {[%clk 0:02:35]}  Bb7 {[%clk 0:02:48]} 7. O-O {[%clk 0:02:36]}  d5 {[%clk 0:02:46]} 8. cxd5 {[%clk 0:02:34]}  exd5 {[%clk 0:02:46]} 9. Ng3 {[%clk 0:02:34]}  Re8 {[%clk 0:02:42]} 10. Qf3 {[%clk 0:02:24]}  a6 {[%clk 0:02:27]} 11. Bd2 {[%clk 0:02:20]}  Nbd7 {[%clk 0:02:24]} 12. Rac1 {[%clk 0:02:13]}  Bf8 {[%clk 0:02:22]} 13. Rfd1 {[%clk 0:02:13]}  g6 {[%clk 0:02:20]} 14. a3 {[%clk 0:02:09]}  c5 {[%clk 0:02:11]} 15. Nce2 {[%clk 0:02:03]}  c4 {[%clk 0:01:41]} 16. Bb1 {[%clk 0:02:03]}  h5 {[%clk 0:01:34]} 17. Nf4 {[%clk 0:01:59]}  h4 {[%clk 0:01:23]} 18. Nge2 {[%clk 0:01:56]}  Ne4 {[%clk 0:01:09]} 19. Bb4 {[%clk 0:01:48]}  Ndf6 {[%clk 0:01:03]} 20. Nc3 {[%clk 0:01:32]}  Ng5 {[%clk 0:00:59]} 21. Qe2 {[%clk 0:01:31]}  Bh6 {[%clk 0:00:58]} 22. a4 {[%clk 0:01:24]}  a5 {[%clk 0:00:57]} 23. Ba3 {[%clk 0:01:24]}  Bc8 {[%clk 0:00:50]} 24. h3 {[%clk 0:01:23]}  Nge4 {[%clk 0:00:45]} 25. Bxe4 {[%clk 0:01:17]}  Nxe4 {[%clk 0:00:46]} 26. Nfxd5 {[%clk 0:01:14]}  Bb7 {[%clk 0:00:32]} 27. Nxe4 {[%clk 0:01:07]}  Rxe4 {[%clk 0:00:26]} 28. Nc3 {[%clk 0:01:06]}  Re6 {[%clk 0:00:24]} 29. d5 {[%clk 0:01:06]}  Qg5 {[%clk 0:00:21]} 30. Qxc4 {[%clk 0:01:04]}  Rc8 {[%clk 0:00:14]} 31. Qg4 {[%clk 0:01:04]}  Qxg4 {[%clk 0:00:13]} 32. hxg4 {[%clk 0:01:05]}  Rxe3 {[%clk 0:00:11]} 33. fxe3 {[%clk 0:01:04]}  Bxe3+ {[%clk 0:00:12]} 34. Kh2 {[%clk 0:01:04]}  Bxc1 {[%clk 0:00:13]} 35. Rxc1 {[%clk 0:01:04]}  Bxd5 {[%clk 0:00:14]} 36. Rd1 {[%clk 0:01:01]}  Be6 {[%clk 0:00:14]} 37. Be7 {[%clk 0:01:01]}  Bxg4 {[%clk 0:00:13]} 38. Rd6 {[%clk 0:01:02]}  Kg7 {[%clk 0:00:08]} 39. Bxh4 {[%clk 0:01:00]}  Be6 {[%clk 0:00:08]} 40. Rxb6 {[%clk 0:00:58]}  Rc4 {[%clk 0:00:08]} 41. Bf2 {[%clk 0:00:56]}  g5 {[%clk 0:00:07]} 42. Rb5 {[%clk 0:00:56]}  Rb4 {[%clk 0:00:06]} 43. Rxb4 {[%clk 0:00:53]}  axb4 {[%clk 0:00:07]} 44. Ne4 {[%clk 0:00:54]}  f6 {[%clk 0:00:06]} 45. a5 {[%clk 0:00:54]}  Bd5 {[%clk 0:00:06]} 46. Nc5 {[%clk 0:00:51]}  Kg6 {[%clk 0:00:07]} 47. a6 {[%clk 0:00:51]}  Kf5 {[%clk 0:00:06]} 48. a7 {[%clk 0:00:52]}  Kg4 {[%clk 0:00:06]} 49. Na6 {[%clk 0:00:52]}  f5 {[%clk 0:00:06]} 50. Nc7 {[%clk 0:00:50]}  Bb7 {[%clk 0:00:06]} 51. a8=Q {[%clk 0:00:50]}  Bxa8 {[%clk 0:00:07]} 52. Nxa8 {[%clk 0:00:51]}  Kf4 {[%clk 0:00:07]} 53. Nc7 {[%clk 0:00:51]}  Ke4 {[%clk 0:00:07]} 54. Ne6 {[%clk 0:00:51]}  g4 {[%clk 0:00:07]} 55. Bc5 {[%clk 0:00:51]}  f4 {[%clk 0:00:06]} 56. Nxf4 {[%clk 0:00:50]}  b3 {[%clk 0:00:04]} 57. Ne2 {[%clk 0:00:49]}  Kd3 {[%clk 0:00:04]} 58. Nc1+ {[%clk 0:00:49]}  Kc2 {[%clk 0:00:05]} 59. Nxb3 {[%clk 0:00:49]}  Kxb2 {[%clk 0:00:05]} 60. Kg3 {[%clk 0:00:50]} 1-0


[Site "https://www.chess.com"]

[Event "Titled Tuesday Blitz March 29 Late 2022"]
[White "Naroditsky, Daniel"]
[Black "Perera Alfonso, Rene Humberto"]
[WhiteFideId "2026961"]
[BlackFideId "3514722"]
[WhiteElo "2608"]
[BlackElo "2313"]
[Result "1-0"]
[Round "01"]
[TimeControl "180+1"]
[Date "2022.03.29"]
[WhiteClock "0:01:18"]
[BlackClock "0:01:11"]

1. d4 {[%clk 0:02:58]}  d5 {[%clk 0:02:50]} 2. c4 {[%clk 0:02:57]}  c6 {[%clk 0:02:47]} 3. Nf3 {[%clk 0:02:57]}  Nf6 {[%clk 0:02:31]} 4. Nc3 {[%clk 0:02:57]}  dxc4 {[%clk 0:02:30]} 5. a4 {[%clk 0:02:57]}  Bf5 {[%clk 0:02:26]} 6. e3 {[%clk 0:02:57]}  e6 {[%clk 0:02:25]} 7. Bxc4 {[%clk 0:02:57]}  Bb4 {[%clk 0:02:16]} 8. O-O {[%clk 0:02:58]}  Nbd7 {[%clk 0:02:15]} 9. Qe2 {[%clk 0:02:58]}  Bg4 {[%clk 0:02:12]} 10. h3 {[%clk 0:02:45]}  Bxf3 {[%clk 0:02:11]} 11. Qxf3 {[%clk 0:02:45]}  O-O {[%clk 0:02:12]} 12. Rd1 {[%clk 0:02:36]}  Rc8 {[%clk 0:02:11]} 13. e4 {[%clk 0:02:23]}  e5 {[%clk 0:02:04]} 14. Be3 {[%clk 0:02:11]}  Qe7 {[%clk 0:01:58]} 15. d5 {[%clk 0:02:07]}  Nb6 {[%clk 0:01:53]} 16. Bb3 {[%clk 0:02:00]}  cxd5 {[%clk 0:01:49]} 17. exd5 {[%clk 0:01:40]}  Nc4 {[%clk 0:01:48]} 18. Bg5 {[%clk 0:01:30]}  h6 {[%clk 0:01:48]} 19. d6 {[%clk 0:01:25]}  Qe6 {[%clk 0:01:34]} 20. Bxf6 {[%clk 0:01:22]}  gxf6 {[%clk 0:01:16]} 21. d7 {[%clk 0:01:19]}  Rcd8 {[%clk 0:01:11]} 22. Nd5 {[%clk 0:01:18]} 1-0


[Site "https://www.chess.com"]